Cogmind - Beta 14 @@@ ROGUE MODE // 2024.10.25 @ 11:10:36 Player: spider wisdom Result: Core destroyed Performance ------------- Evolutions (4) 2000 Regions Visited (6) 1200 Robots Destroyed (42) 210 Value Destroyed (1213) 1213 Prototype IDs (2) 40 Alien Tech Used (0) 0 Bonus (500) 500 TOTAL SCORE: 5163 Bonus ------- Entered DSFs 500 Cogmind --------- Core Integrity 0/850 Matter 151/300 Energy 272/310 System Corruption 3% Temperature Critical (684) Movement Core (1650) Ox32 Location -6/Factory Parts ------- > --- POWER (2) -------- Fission Core > --- PROPULSION (4) --- Compact Wheel > --- UTILITY (6) ------ Huge Storage Unit > --- WEAPON (3) ------- Plasma Cannon > --- INVENTORY (25) --- (None) Peak State ------------ > --- POWER ------------ Fission Core Fission Core > --- PROPULSION ------- Wheel Wheel Compact Wheel Compact Wheel > --- UTILITY ---------- Huge Storage Unit > --- WEAPON ----------- Pulse Rifle Plasma Cannon Heavy Machine Gun > --- INVENTORY -------- Assault Cannon [Rating: 27] Favorites ----------- Power Fission Core Engine Ion Engine Power Core Fission Core Propulsion Aluminum Leg Treads Light Treads Leg Aluminum Leg Wheel Wheel Utility Small Storage Unit Device Seismic Detector Storage Small Storage Unit Processor Targeting Computer Hackware Hacking Suite Weapon Medium Laser Energy Gun Medium Laser Energy Cannon Plasma Cannon Ballistic Gun Heavy Machine Gun Ballistic Cannon Assault Cannon Build | -11 -10 -9 -8 -7 -7 -6 ------- Run | Yrd Mat Mat Mat Fac DSF Fac Slots Evolved 8 | . . 2 2 2 . 2 Power 1 | . . . . 1 . . Propulsion 2 | . . . 1 . . 1 Utility 4 | . . 1 1 1 . 1 Weapon 1 | . . 1 . . . . Parts Attached 51 | 5 2 3 24 1 5 11 Power 6 | 1 . . 2 . 1 2 Engine 3 | 1 . . 1 . 1 . Core 3 | . . . 1 . . 2 Reactor . | . . . . . . . Propulsion 18 | 2 . 1 10 . 1 4 Treads 3 | . . . 3 . . . Leg 11 | 2 . 1 7 . 1 . Wheel 4 | . . . . . . 4 Hover . | . . . . . . . Flight . | . . . . . . . Utility 8 | 1 1 1 4 . . 1 Device 3 | . 1 . 2 . . . Storage 3 | 1 . . 1 . . 1 Processor 1 | . . 1 . . . . Hackware 1 | . . . 1 . . . Protection . | . . . . . . . Artifact . | . . . . . . . Weapon 19 | 1 1 1 8 1 3 4 Energy Gun 14 | 1 1 1 7 1 3 . Energy Cannon 1 | . . . . . . 1 Ballistic Gun 1 | . . . . . . 1 Ballistic Cannon 3 | . . . 1 . . 2 Launcher . | . . . . . . . Special Weapon . | . . . . . . . Impact Weapon . | . . . . . . . Slashing Weapon . | . . . . . . . Piercing Weapon . | . . . . . . . Special Melee Weapon . | . . . . . . . Unidentified Prototypes 2 | . . . 2 . . . Parts Lost 22 | . . . 4 . 11 7 Power 3 | . . . . . 2 1 Propulsion 9 | . . . 2 . 4 3 Utility 2 | . . . 1 . 1 . Weapon 8 | . . . 1 . 4 3 Highest Loss Streak 11 | . . . 2 . 11 7 To Critical Strikes . | . . . . . . . Average Slot Usage (%) 79 | . 97 96 93 76 60 32 Engine 5 | . 14 11 4 . . . Core 4 | . . . 4 7 3 11 Treads 4 | . . . 11 . . . Leg 15 | . 28 22 12 23 20 . Wheel 1 | . . . . . . 6 Device 8 | . 12 11 12 7 3 . Storage 8 | . 14 11 9 7 6 1 Processor 5 | . . 11 9 7 6 . Energy Gun 19 | . 27 29 20 21 18 5 Ballistic Cannon 2 | . . . 6 1 . 2 Peak Build Rating 27 | 5 7 11 25 25 25 27 Average Rating 13 | 3 6 9 17 25 19 16 On Entrance 10 | . 5 7 11 25 25 3 Naked Turns . | . . . . . . . Heaviest Build 115 | 12 15 18 101 95 96 115 Greatest Support 60 | 20 20 20 60 60 60 52 Greatest Overweight (x) 32 | 1 . . 8 1 2 32 Average Overweight (x) . | . . . . 1 . 3 Largest Inventory Capacity 25 | 8 8 8 25 25 25 25 Average Capacity 12 | 6 8 8 14 25 21 11 Most Carried 8 | 5 5 8 8 8 7 4 Average Carried 3 | 2 3 5 4 7 5 1 Final Capacity 25 | 8 8 8 25 25 5 25 Final Carried 8 | 3 5 7 8 7 3 . Class Distribution -------------------- 43% | Mutant 38% | Gunner 17% | Scavenger-Gunner Dominant Class ---------------- Mutant | -10/Materials Gunner | -9/Materials Gunner | -8/Materials Gunner | -7/Factory Gunner | -7/DSF Mutant | -6/Factory Resources | -11 -10 -9 -8 -7 -7 -6 ----------- Run | Yrd Mat Mat Mat Fac DSF Fac Matter Collected 1031 | 212 58 55 450 . 17 239 Remotely . | . . . . . . . Salvage Created 1515 | . 56 245 856 . 62 296 Parts 81 | . 4 21 42 . 2 12 Haulers Intercepted . | . . . . . . . Recyclers Shooed . | . . . . . . . Parts Field Recycled . | . . . . . . . Retrieved Matter . | . . . . . . . Parts Self-Destructed . | . . . . . . . Prevented . | . . . . . . . Kills | -11 -10 -9 -8 -7 -7 -6 ------- Run | Yrd Mat Mat Mat Fac DSF Fac Combat Hostiles Destroyed 28 | . 1 4 19 . 1 3 Guns 16 | . 1 4 10 . 1 . Cannons 12 | . . . 9 . . 3 Classes Destroyed 9 | . 2 1 4 . . 2 Worker 3 | . . . . . . 3 Builder 3 | . . . 3 . . . Recycler 2 | . . . 1 . . 1 Watcher 6 | . 1 3 2 . . . Swarmer 7 | . . . 7 . . . Grunt 12 | . 1 2 8 . . 1 Brawler 3 | . . . 2 . . 1 Sentry 5 | . . 2 2 . 1 . Programmer 1 | . . . . . . 1 Best Kill Streak 8 | . 1 2 8 . 1 4 Combat Bots Only 5 | . 1 2 5 . 1 1 Max Kills in Single Turn 1 | . 1 1 1 . 1 1 Gunslinging . | . . . . . . . Exploded . | . . . . . . . Melee . | . . . . . . . Uniques/NPCs Destroyed . | . . . . . . . Combat | -11 -10 -9 -8 -7 -7 -6 -------- Run | Yrd Mat Mat Mat Fac DSF Fac Hostile Shots Fired 320 | . 7 38 117 . 103 55 Missed 76 | . 2 9 30 . 30 5 Damage Taken 4540 | . 73 276 929 . 1662 1600 Core 1414 | . 14 68 138 . 344 850 Absorbed by Shields 227 | . . . 168 . 59 . Core Remaining (%) 80 | 100 94 83 74 . 50 . Volleys Fired 108 | . 7 11 57 . 3 30 Largest 3 | . 2 3 3 . 3 3 Hottest 173 | . 90 155 171 . 159 173 Shots Fired 263 | . 14 27 136 . 8 78 Gun 186 | . 14 27 93 . 8 44 Cannon 77 | . . . 43 . . 34 Launcher . | . . . . . . . Special . | . . . . . . . Kinetic 85 | . . . 43 . . 42 Thermal 145 | . 7 16 78 . 8 36 Explosive . | . . . . . . . Electromagnetic 33 | . 7 11 15 . . . Robot Hit Streak 10 | . 4 9 10 . 8 10 Robot Miss Streak 7 | . 3 5 4 . . 7 Penetration Max . | . . . . . . . Secondary Targets . | . . . . . . . Shots Hit Robots 146 | . 7 15 78 . 8 38 Core Hits 73 | . 4 14 40 . 4 11 Critical Kills . | . . . . . . . Critical Parts Destroyed . | . . . . . . . Critical Strikes 17 | . . 2 11 . 1 3 Burn 14 | . . 2 8 . 1 3 Blast 3 | . . . 3 . . . Melee Attacks . | . . . . . . . Impact . | . . . . . . . Slashing . | . . . . . . . Piercing . | . . . . . . . Sneak Attacks . | . . . . . . . Combat Hostiles . | . . . . . . . Follow-up Attacks . | . . . . . . . Damage Inflicted 2808 | . 122 243 1477 . 120 846 Guns 1560 | . 87 196 754 . 116 407 Cannons 1066 | . . . 627 . . 439 Explosions 164 | . 35 47 82 . . . Melee . | . . . . . . . Ramming 18 | . . . 14 . 4 . Kinetic 1130 | . . . 627 . . 503 Thermal 1409 | . 85 188 677 . 116 343 Explosive . | . . . . . . . Electromagnetic 251 | . 37 55 159 . . . Impact . | . . . . . . . Slashing . | . . . . . . . Piercing . | . . . . . . . Highest Corruption 3 | . 3 . . . . 3 Average Corruption 2 | . 2 . . . . 2 Corruption Purged . | . . . . . . . Corruption Blocked . | . . . . . . . Effects 13 | . 5 . . . . 8 Message Errors 1 | . . . . . . 1 Matter Fused 8 | . 3 . . . . 5 Heat Flow Errors 2 | . 1 . . . . 1 Energy Discharges 1 | . . . . . . 1 Data Loss (major) 1 | . 1 . . . . . Overload Shots . | . . . . . . . Overflow Damage 54 | . . . 18 . . 36 Projectiles 39 | . . . 3 . . 36 Explosions 15 | . . . 15 . . . Melee . | . . . . . . . Knockbacks 7 | . . . 2 . . 5 Impact . | . . . . . . . Kinetic 7 | . . . 2 . . 5 Secondary . | . . . . . . . Self-Inflicted Damage . | . . . . . . . Shots . | . . . . . . . Rammed 1 | . . . 1 . . . Targets Rammed 3 | . . . 1 . 2 . Kicked 2 | . . . . . 2 . Crushed . | . . . . . . . Highest Temperature 1066 | . 225 247 556 . 11 1066 Average Temperature 205 | . 100 76 176 . 10 347 Received Heat Transfer 970 | . 45 48 505 . 12 360 Effects 45 | . . . 20 . . 25 Shutdowns 11 | . . . 3 . . 8 Energy Bleed 5 | . . . 2 . . 3 Interference 13 | . . . 11 . . 2 Matter Decay 2 | . . . 1 . . 1 Short Circuit 4 | . . . 2 . . 2 Damage (minor) 2 | . . . 1 . . 1 Damage (major) 3 | . . . . . . 3 Damage (core) 5 | . . . . . . 5 Siege Activations . | . . . . . . . Robots Corrupted . | . . . . . . . Combat Hostiles . | . . . . . . . Parts Fried . | . . . . . . . Impact Corruptions . | . . . . . . . Robots Melted . | . . . . . . . Combat Hostiles . | . . . . . . . Parts Melted 7 | . . . 7 . . . Heat Transferred 4311 | . 198 517 2323 . 346 927 Parts Sabotaged . | . . . . . . . Parts Stolen . | . . . . . . . Parts Stripped . | . . . . . . . Power Chain Reactions 3 | . 1 1 1 . . . Alert | -11 -10 -9 -8 -7 -7 -6 ------- Run | Yrd Mat Mat Mat Fac DSF Fac Peak Influence 256 | . 80 184 256 121 84 101 Initial 116 | . . . 5 116 84 7 Average 68 | . 31 72 115 116 63 24 Maximum Alert Level 1 | . . . 1 . . . Low Security (%) 92 | 100 100 100 77 100 100 100 Level 1 7 | . . . 22 . . . Level 2 . | . . . . . . . Level 3 . | . . . . . . . Level 4 . | . . . . . . . Level 5 . | . . . . . . . High Security . | . . . . . . . Max Security . | . . . . . . . Squads Dispatched 1 | . . . . . 1 . Investigation . | . . . . . . . Extermination . | . . . . . . . Reinforcement 1 | . . . . . 1 . Assault . | . . . . . . . Garrison . | . . . . . . . Intercept . | . . . . . . . Searches Triggered . | . . . . . . . Construction Impeded . | . . . . . . . Haulers Reinforced . | . . . . . . . Active Scanning Responses . | . . . . . . . Cargo Convoy Interrupts . | . . . . . . . Stealth | -11 -10 -9 -8 -7 -7 -6 --------- Run | Yrd Mat Mat Mat Fac DSF Fac Distress Signals 2 | . . 1 1 . . . Communications Jammed . | . . . . . . . Distress Signals . | . . . . . . . Times Spotted 56 | . 3 13 29 . 5 6 Peak Tracking Total 7 | . 1 6 7 . 5 4 Tactical Retreats 4 | . . . 1 . 1 2 Traps | -11 -10 -9 -8 -7 -7 -6 ------- Run | Yrd Mat Mat Mat Fac DSF Fac Traps Triggered 3 | . 2 . . . 1 . Indirectly . | . . . . . . . Trap Hack Attempts . | . . . . . . . Triggered . | . . . . . . . Disarmed . | . . . . . . . Reprogrammed . | . . . . . . . Reused . | . . . . . . . Traps Extracted . | . . . . . . . Installed . | . . . . . . . Triggered . | . . . . . . . Machines | -11 -10 -9 -8 -7 -7 -6 ---------- Run | Yrd Mat Mat Mat Fac DSF Fac Machines Disabled 3 | . . . 3 . . . Max in Single Turn 1 | . . . 1 . . . Machines Repaired . | . . . . . . . Machines Dismantled . | . . . . . . . Machines Sabotaged . | . . . . . . . Overloaded Fab Kills . | . . . . . . . Hacking | -11 -10 -9 -8 -7 -7 -6 --------- Run | Yrd Mat Mat Mat Fac DSF Fac Machines Accessed 5 | . 2 . 2 1 . . Terminals 5 | . 2 . 2 1 . . Fabricators . | . . . . . . . Repair Stations . | . . . . . . . Recycling Units . | . . . . . . . Scanalyzers . | . . . . . . . Garrison Access . | . . . . . . . Total Hacks 11 | . 3 . 7 1 . . Successful 6 | . 1 . 4 1 . . Failed 4 | . 2 . 2 . . . Catastrophic 3 | . 2 . 1 . . . Database Lockouts 1 | . . . 1 . . . Manual 6 | . 3 . 3 . . . Terminals 11 | . 3 . 7 1 . . Fabricators . | . . . . . . . Repair Stations . | . . . . . . . Recycling Units . | . . . . . . . Scanalyzers . | . . . . . . . Garrison Access . | . . . . . . . Terminal Hacks 5 | . . . 4 1 . . Record 3 | . . . 3 . . . Open DSF 1 | . . . . 1 . . Zone Layout 1 | . . . 1 . . . Fabricator Hacks . | . . . . . . . Repair Station Hacks . | . . . . . . . Recycling Unit Hacks . | . . . . . . . Scanalyzer . | . . . . . . . Garrison Access Hacks . | . . . . . . . Unauthorized Hacks 1 | . 1 . . . . . Terminals 1 | . 1 . . . . . Assimilate 1 | . 1 . . . . . Fabricators . | . . . . . . . Repair Stations . | . . . . . . . Recycling Units . | . . . . . . . Scanalyzers . | . . . . . . . Garrison Access . | . . . . . . . Data Cores Recovered . | . . . . . . . Used . | . . . . . . . Hacking Detections 2 | . 1 . 1 . . . Full Trace Events . | . . . . . . . Feedback Events . | . . . . . . . Feedback Blocked . | . . . . . . . Robot Schematics Acquired . | . . . . . . . Robots Built . | . . . . . . . Authchips . | . . . . . . . Time . | . . . . . . . Total Robot Build Rating . | . . . . . . . Part Schematics Acquired . | . . . . . . . Parts Built . | . . . . . . . Authchips . | . . . . . . . Time . | . . . . . . . Total Part Build Rating . | . . . . . . . Parts Repaired . | . . . . . . . Time . | . . . . . . . Parts Recycled . | . . . . . . . Recycled Matter . | . . . . . . . Retrieved Matter . | . . . . . . . Retrieved Components . | . . . . . . . Parts Scanalyzed . | . . . . . . . Part Schematics Acquired . | . . . . . . . Parts Damaged . | . . . . . . . Bothacking | -11 -10 -9 -8 -7 -7 -6 ------------ Run | Yrd Mat Mat Mat Fac DSF Fac Used RIF Installer . | . . . . . . . Robots Hacked . | . . . . . . . Non-combat . | . . . . . . . Combat . | . . . . . . . Robot Hacks Applied . | . . . . . . . Relay Couplers Released 4 | . . . . . . 4 Programmers 4 | . . . . . . 4 Fabnet Peak Effective % . | . . . . . . . Robots Rewired . | . . . . . . . Allies Hacked . | . . . . . . . Hacks Repelled . | . . . . . . . Allies | -11 -10 -9 -8 -7 -7 -6 -------- Run | Yrd Mat Mat Mat Fac DSF Fac Total Allies . | . . . . . . . Largest Group . | . . . . . . . Highest-Rated Group . | . . . . . . . Highest-Rated Ally . | . . . . . . . Total Orders . | . . . . . . . Ally Attacks . | . . . . . . . Total Damage . | . . . . . . . Kills . | . . . . . . . Allies Corrupted . | . . . . . . . Allies Melted . | . . . . . . . Intel | -11 -10 -9 -8 -7 -7 -6 ------- Run | Yrd Mat Mat Mat Fac DSF Fac Robot Analysis Total . | . . . . . . . Derelict Logs Recovered . | . . . . . . . Drone Launches . | . . . . . . . Drone Recoveries . | . . . . . . . Exploration | -11 -10 -9 -8 -7 -7 -6 ------------- Run | Yrd Mat Mat Mat Fac DSF Fac Turns Passed 3281 | 84 646 462 1126 105 164 694 Spaces Moved 1714 | 70 467 317 440 52 85 283 Core 228 | 24 . . 10 . 14 180 Treads 148 | . . . 148 . . . Legs 1235 | 46 467 317 282 52 71 . Wheels 103 | . . . . . . 103 Hover . | . . . . . . . Flight . | . . . . . . . Fastest Speed 50 | 50 120 120 120 200 50 50 Average Speed 153 | 98 120 120 180 200 166 206 Slowest Speed 1650 | 120 120 120 450 200 270 1650 Overloaded Moves . | . . . . . . . Propulsion Burnouts . | . . . . . . . Robots Hopped . | . . . . . . . Cave-ins Triggered . | . . . . . . . Exploration Rate (%) 31 | 4 67 30 37 2 74 7 Regions Visited 6 Branch Regions . Pre-discovered Areas . | . . . . . . . Known Exits Taken 1 | . . . . 1 . . Unknown Exits Taken 4 | 1 1 1 1 . . . Scrap Searched . | . . . . . . . Spaces Dug . | . . . . . . . Terrain Destroyed 23 | . 6 3 14 . . . Melee . | . . . . . . . Projectile 8 | . . . 8 . . . AOE 15 | . 6 3 6 . . . Terrain Rammed . | . . . . . . . Walls Destroyed . | . . . . . . . Machines Disabled . | . . . . . . . Actions | -11 -10 -9 -8 -7 -7 -6 --------- Run | Yrd Mat Mat Mat Fac DSF Fac Total 2161 | 86 539 377 666 54 101 338 Wait 197 | . 56 37 97 1 3 3 Move 1708 | 69 466 316 439 51 84 283 Hop . | . . . . . . . Pick Up 55 | 10 6 7 23 . . 9 Fast Attach . | . . . . . . . Attach 41 | 5 2 2 16 . 5 11 Detach 11 | . . . 9 . 2 . Swap 11 | . . 1 8 1 . 1 Drop 25 | 2 2 3 16 1 . 1 Fire 108 | . 7 11 57 . 3 30 Melee . | . . . . . . . Ram . | . . . . . . . Kick 2 | . . . . . 2 . Crush 1 | . . . 1 . . . Escape Stasis 2 | . . . . . 2 . Rewire . | . . . . . . . Trap . | . . . . . . . Miscellaneous . | . . . . . . . Route ------- -11/Scrapyard -10/Materials (discovered 3 exits: [*Mat x2] / [*Min]) -9/Materials -8/Materials -7/Factory -7/DSF -6/Factory History --------- Turn | Location | Event 5 | -11/Scrapyard | Discovered new exit (range 16) 85 | -11/Scrapyard | Entered Materials 263 | -10/Materials | Discovered new exit (range 7) 300 | -10/Materials | Build established: Mutant 448 | -10/Materials | Discovered new exit (range 5) 576 | -10/Materials | Discovered new exit (range 11) 731 | -10/Materials | Entered another Materials area 731 | -9/Materials | Evolved 2 slots: Utility x1, Weapon x1 1049 | -9/Materials | Discovered new exit (range 12) 1163 | -9/Materials | Build established: Gunner 1193 | -9/Materials | Entered another Materials area 1193 | -8/Materials | Evolved 2 slots: Propulsion x1, Utility x1 1715 | -8/Materials | Central database locked down 2094 | -8/Materials | Discovered new exit (range 15) 2319 | -8/Materials | Entered Factory 2319 | -7/Factory | Evolved 2 slots: Power x1, Utility x1 2420 | -7/Factory | Identified exit to DSF 2424 | -7/Factory | Entered DSF 2494 | -7/DSF | Additional patrols routed to DSF 2581 | -7/DSF | Discovered new exit (range 15) 2588 | -7/DSF | Entered Factory 2588 | -6/Factory | Evolved 2 slots: Propulsion x1, Utility x1 2612 | -6/Factory | Lost 11 parts (2p4n1u4w) 2816 | -6/Factory | Build established: Mutant 3266 | -6/Factory | Core integrity fell below 50% 3268 | -6/Factory | Core integrity fell below 20% 3283 | -6/Factory | Core destroyed Last Messages --------------- 03263_ ALERT: Cargo convoy en route, clear transfer corridor. 03266_ Power failure, Fission Core shutdown. 03266_ Overheating: Core damaged (-170). 03266_ System corrupted: Matter fused (-8). 03268_ Overheating: Core damaged (-110). 03269_ K-01 Serf collects debris. 03270_ Assault Cannon destroyed. 03272_ Com. Wheel broken. 03272_ Overheating: Short circuit. 03272_ K-01 Serf collects debris. 03273_ Overheating: Matter decay (-34). 03273_ Acquired 32 matter. 03274_ Power failure, Fission Core shutdown. 03276_ K-01 Serf collects debris. 03277_ Overheating: System interference. 03277_ Plasma Cannon temporarily disabled. 03279_ Overheating: Energy bleed (-58). 03280_ K-01 Serf collects debris. 03280_ Broken Com. Wheel destroyed. 03283_ Overheating: Core damaged (-119). Map ----- +----------------------------------------------------+ | ?????????????????????????????????????????????????? | | ?????????????????????????????????????????????????? | | ?????????????????????????????????????????????????? | | ?????????????????????????????????????+##?????????? | | ???????????????????????????????????? #?????????? | | ??????????????????????????????????## #?????????? | | ????????????????????????????????? #?????????? | | ???????????????? ???????????????? #?????????? | | ???????????????? ###+########## ##????????? | | ??????????????? #????????? | | ??????????????? # ?????? | | ?????????????? / ?????? | | ?????????????? #????????? | | ?????????????? #????????? | | ?????????????# ??????######### #######???????????? | | ?????????????# ?????????????# #?????????????????? | | ?????????????# ????????????#%#?????????????????? | | ?????????????# ???????????#%#?????????????????? | | ?????????????# ???????####/#########?????????? | | ?????????????# ##?????# * #?????????? | | ?????????????# k ????# #?????????? | | ?????????????# ????# #?????????? | | ??????????#### ##### #?????????? | | ????????? g # ! #?????????? | | ????????? # #?????????? | | ????????? @/ #?????????? | | ????????? k # #?????????? | | ????????? # #?????????? | | ??????????#+####+####### # #?????????? | | ??????????# # # #?????????? | | ??????????# + + #?????????? | | ??????????# #################?????????? | | ??????????# """" #?????????????????????????? | | ??????????# """" #?????????????????????????? | | ??????????# """" #?????????????????????????? | | ??????????# """" #?????????????????????????? | | ??????????# """" #?????????????????????????? | | ????#?????# """" #?????????????????????????? | | ????# ????# """" #?????????????????????????? | | ????# ###?# #?????????????????????????? | | ????+ ?# #?????????????????????????? | | ????# ##+##"#########?????????????????????????? | | ????# %#?????????????????????????????????? | | ????+ !#?????????????????????????????????? | | ????# ####?????????????????????????????????? | | ????# #????????????????????????????????????? | | ????+ #????????????????????????????????????? | | ????#+##### #????????????????????????????????????? | | ?????????## ##???????????????????????????????????? | | ?????????# #???????????????????????????????????? | +----------------------------------------------------+ Best States ------------- Heat Dissipation 37 Energy Generation 31 Energy Capacity 520 Matter Stores 300 Matter Capacity 300 Sight Range 16 Robot Scan Range 14 Terrain Scan Density 10 Evasion (%) 55 Targeting Accuracy 5 Recoil Reduction 3 Offensive Hacking 10 Item Schematics ----------------- None Robot Schematics ------------------ None Fabricated ------------ Nothing Alien Tech Used ----------------- None Achievements -------------- None Challenges ------------ None Game ------ Seed StorageCoilShielding Manual? 0 Play Time 00:52:47 Cumulative 6.1 hours Start 2024.10.07 @ 09:28:35 End 2024.10.25 @ 11:10:36 Sessions 11 Manual Loads 0 Difficulty Rogue Special Mode None Game No. 22 Rogue 16 Adventurer 6 Explorer 0 Win Type - Total 0 Types 0/0/0/0/0/0/0/0/0 Lore% 4 Gallery% 15 Achievement% 12 Wizard Run 0 Options --------- Layout 0 ASCII 0 Keyboard 1 Movement Numpad Keybinds 0 Fullscreen 1 Font 24/Proggy Map View 76x50 Zoom Use 2% Tactical HUD 1 Map Filters NONE Filters NONE Steam 1 RUN: 444b235e-fb53-41be-a509-a565edca0291